lending/lending_fUSD_20251016
["ID","MTS","AMOUNT","RATE_DAILY","PERIOD"]
[391562540,1760656240011,-152.0,0.00026221,3]
[391562541,1760656240023,-500.0,0.00026333,2]
[391562542,1760656240035,-500.0,0.00026333,2]
[391562543,1760656240047,-398.55,0.00026676,2]
[391562544,1760656240060,-966.01,0.00026681,2]
[391562545,1760656240071,-535.95,0.0002689,30]
[391562546,1760656240087,-523.0,0.00027,2]
[391562547,1760656240099,-523.0,0.00027,2]
[391562548,1760656240111,-523.0,0.00027,2]
[391562549,1760656240123,-327.71,0.00027,7]
[391562550,1760656240135,-201.0,0.00027397,2]
[391562551,1760656240148,-1099.2,0.00027397,16]
[391562552,1760656240159,-3384.04,0.00027421,2]
[391562553,1760656240170,-666.0,0.00027424,3]
[391562554,1760656240181,-413.38,0.00027445,2]
[391562555,1760656240192,-1000.0,0.00027456,2]
[391562556,1760656240204,-375.0,0.00027794,7]
[391562557,1760656240215,-1000.0,0.00027812,30]
[391562558,1760656240226,-1000.0,0.00027812,30]
[391562559,1760656240238,-1000.0,0.00027812,30]
[391562560,1760656240249,-1005.46931787,0.00027812,30]
[391562561,1760656240261,-375.0,0.0002793,7]
[391562562,1760656240273,-523.0,0.00028,2]
[391562563,1760656240284,-523.0,0.00028,2]
[391562564,1760656240295,-523.0,0.00028,2]
[391562565,1760656240307,-327.71,0.00028,7]
[391562566,1760656240318,-250.0,0.00028742,2]
[391562567,1760656240330,-1000.0,0.00028775,2]
[391562568,1760656240342,-814.36463739,0.00028775,2]
[391562569,1760656240353,-250.0,0.00028775,2]
[391562570,1760656240365,-250.0,0.00028775,2]
[391562571,1760656240376,-250.0,0.00028775,2]
[391562572,1760656240388,-250.0,0.00028775,2]
[391562574,1760656240400,-250.0,0.00028775,2]
[391562575,1760656240412,-250.0,0.00028775,2]
[391562576,1760656240423,-250.0,0.00028775,2]
[391562577,1760656240434,-250.0,0.00028775,2]
[391562578,1760656240445,-250.0,0.00028775,2]
[391562579,1760656240457,-250.0,0.00028775,2]
[391562580,1760656240468,-250.0,0.00028775,2]
[391562582,1760656240483,-250.0,0.00028775,2]
[391562583,1760656240494,-523.0,0.00029,30]
[391562584,1760656240505,-523.0,0.00029,30]
[391562585,1760656240517,-523.0,0.00029,30]
[391562586,1760656240528,-327.71,0.00029,7]
[391562587,1760656240539,-1137.73,0.0002905,2]
[391562588,1760656240550,-526.04,0.00029121,2]
[391562589,1760656240561,-151.04,0.00029121,2]
[391562590,1760656240572,-523.98,0.00029121,2]
[391562591,1760656240583,-150.41,0.00029121,2]
[391562592,1760656240595,-515.96,0.00029121,2]
[391562593,1760656240606,-150.79,0.00029121,2]
[391562594,1760656240618,-152.61,0.00029121,2]
[391562595,1760656240632,-535.46,0.00029121,2]
[391562596,1760656240647,-1297.75,0.00029143,2]
[391562597,1760656240659,-1308.91,0.00029143,2]
[391562598,1760656240672,-600.0,0.00029221,7]
[391562599,1760656240688,-500.0,0.00029221,7]
[391562600,1760656240699,-500.0,0.00029221,7]
[391562601,1760656240710,-152.3,0.00029221,2]
[391562602,1760656240721,-150.95,0.00029221,2]
[391562603,1760656240733,-150.0,0.00029224,2]
[391562604,1760656240744,-515.6,0.00029227,2]
[391562605,1760656240755,-581.85,0.00029266,3]
[391562606,1760656240766,-538.34,0.00029276,15]
[391562607,1760656240778,-538.34,0.00029276,15]
[391562608,1760656240789,-538.34,0.00029276,15]
[391562609,1760656240799,-538.34,0.00029276,15]
[391562610,1760656240810,-519.48,0.00029482,2]
[391562611,1760656240821,-538.34,0.0002955,15]
[391562612,1760656240832,-538.34,0.0002955,15]
[391562613,1760656240843,-673.2,0.00029562,2]
[391562614,1760656240854,-2959.98000413,0.00029727,2]
[391562615,1760656240865,-2866.27040116,0.00029771,2]
[391562616,1760656240876,-150.0,0.00029791,120]
[391562617,1760656240887,-538.34,0.00029824,15]
[391562618,1760656240898,-538.34,0.00029824,15]
[391562619,1760656240909,-152.0,0.00029827,4]
[391562620,1760656240919,-2959.9800041,0.00029844,2]
[391562621,1760656240931,-577.1839,0.000299,2]
[391562622,1760656240941,-168.0,0.00029907,2]
[391562623,1760656240953,-2127.0,0.00029909,2]
[391562624,1760656240964,-714.99003907,0.00029939,2]
[391562625,1760656240975,-2959.9800041,0.0002996,2]
[391562626,1760656240986,-171.0,0.0003,14]
[391562627,1760656240997,-523.0,0.0003,30]
[391562628,1760656241008,-523.0,0.0003,30]
[391562629,1760656241019,-523.0,0.0003,30]
[391562630,1760656241030,-600.0,0.00030043,7]
[391562631,1760656241041,-42584.73,0.00030072,8]
[391562632,1760656241051,-7675.94,0.00030072,8]
[391562633,1760656241063,-2959.9800041,0.00030077,2]
[391562634,1760656241074,-538.34,0.00030098,15]
[391562635,1760656241085,-538.34,0.00030098,15]
[391562636,1760656241109,-902.54176296,0.00030137,2]
[391562637,1760656241121,-500.0,0.00030177,120]
[391562638,1760656241132,-2000.0,0.00030177,120]
[391562639,1760656241143,-500.0,0.00030177,120]
[391562640,1760656241154,-500.0,0.00030177,120]
[391562641,1760656241165,-2959.9800041,0.00030194,2]
[391562642,1760656241177,-2127.0,0.00030218,2]
[391562643,1760656241187,-474.73,0.00030251,2]
[391562644,1760656241200,-474.73,0.00030251,2]
[391562645,1760656241212,-948.86,0.00030251,2]
[391562646,1760656241224,-873.34230231,0.00030289,2]
[391562647,1760656241236,-2959.9800041,0.0003031,2]
[391562648,1760656241247,-150.0,0.00030321,120]
[391562649,1760656241259,-538.34,0.00030372,15]
[391562650,1760656241269,-538.34,0.00030372,15]
[391562651,1760656241282,-1612.09967249,0.00030391,2]
[391562652,1760656241293,-14530.76112801,0.00030393,2]
[391562653,1760656241304,-2000.0,0.000304,2]
[391562654,1760656241315,-150.0,0.00030417,120]
[391562655,1760656241326,-166.88,0.00030424,2]
[391562656,1760656241338,-14530.76112801,0.00030424,2]
[391562657,1760656241349,-2959.9800041,0.00030427,2]
[391562658,1760656241360,-7216.40626626,0.00030434,2]
[391562659,1760656241371,-14530.76112801,0.00030434,2]
[391562660,1760656241382,-960.4409779,0.00030438,2]
[391562661,1760656241392,-7216.40626626,0.00030444,2]
[391562662,1760656241403,-116306.8617568,0.00030447,2]
[391562663,1760656241414,-7216.40626626,0.00030449,2]
[391562664,1760656241425,-860.25826882,0.00030454,2]
[391562665,1760656241436,-14530.76112801,0.00030457,2]
[391562666,1760656241447,-1612.09967249,0.00030461,2]
[391562667,1760656241458,-181.02885335,0.00030466,2]
[391562668,1760656241469,-1720.51653763,0.00030469,2]
[391562669,1760656241481,-1612.09967249,0.0003048,2]
[391562670,1760656241492,-528.73,0.00030496,2]
[391562671,1760656241503,-116306.8617568,0.00030507,2]
[391562672,1760656241513,-116306.8617568,0.00030509,2]
[391562673,1760656241524,-7216.40626626,0.00030511,2]
[391562674,1760656241535,-860.25826882,0.00030514,2]
[391562675,1760656241547,-1720.51653763,0.00030518,2]
[391562676,1760656241558,-150.0,0.0003052,2]
[391562677,1760656241569,-150.0,0.0003052,2]
[391562678,1760656241579,-150.0,0.0003052,2]
[391562679,1760656241590,-150.0,0.0003052,2]
[391562680,1760656241601,-500.0,0.0003052,2]
[391562681,1760656241611,-500.0,0.0003052,2]
[391562682,1760656241621,-500.0,0.0003052,2]
[391562683,1760656241636,-500.0,0.0003052,2]
[391562684,1760656241649,-500.0,0.0003052,2]
[391562685,1760656241660,-193.39337646,0.0003052,2]
[391562686,1760656241670,-150.0,0.0003052,2]
[391562687,1760656242097,-150.0,0.0003052,2]
[391562688,1760656242109,-150.0,0.0003052,2]
[391562689,1760656242120,-150.0,0.0003052,2]
[391562690,1760656242130,-200.0,0.0003052,2]
[391562691,1760656242140,-150.0,0.0003052,2]
[391562692,1760656242150,-150.0,0.0003052,2]
[391562693,1760656242160,-150.0,0.0003052,2]
[391562694,1760656242171,-1720.51653763,0.00030521,2]
[391562695,1760656242181,-1612.09967249,0.00030521,2]
[391562696,1760656242192,-150.0,0.00030524,120]
[391562697,1760656242203,-2127.0,0.00030526,2]
[391562698,1760656242213,-860.25826882,0.00030528,2]
[391562699,1760656242223,-1744.1595,0.00030529,2]
[391562700,1760656242233,-181.02885335,0.00030529,2]
[391562701,1760656242243,-860.25826882,0.00030533,2]
[391562702,1760656242254,-116306.8617568,0.00030534,2]
[391562703,1760656242264,-2959.9800041,0.00030544,2]
[391562704,1760656242274,-181.02885335,0.00030546,2]
[391562705,1760656242284,-181.02885335,0.00030559,2]
[391562706,1760656242294,-1576.96291537,0.0003056,2]
[391562707,1760656242304,-1720.51653763,0.00030562,2]
[391562708,1760656242314,-199.85,0.00030564,2]
[391562709,1760656242324,-150.0,0.00030575,2]
[391562710,1760656242335,-150.0,0.00030575,2]
[391562711,1760656242344,-200.0,0.00030577,2]
[391562712,1760656242354,-1578.86,0.00030629,120]
[391562713,1760656242364,-1578.86,0.00030629,120]
[391562714,1760656242373,-1578.86,0.00030629,120]
[391562715,1760656242383,-1578.86,0.00030629,120]
[391562716,1760656242392,-1578.86,0.00030629,120]
[391562717,1760656242402,-1578.86,0.00030629,120]
[391562718,1760656242411,-1578.86,0.00030629,120]
[391562719,1760656242422,-1578.86,0.00030629,120]
[391562720,1760656242432,-1578.86,0.00030629,120]
[391562721,1760656242441,-1578.86,0.00030629,120]
[391562722,1760656242452,-1578.86,0.00030629,120]
[391562723,1760656242463,-1578.86,0.00030629,120]
[391562724,1760656242473,-1578.86,0.00030629,120]
[391562725,1760656242482,-1578.86,0.00030629,120]
[391562726,1760656242492,-1578.86,0.00030629,120]
[391562727,1760656242502,-1578.86,0.00030629,120]
[391562728,1760656242512,-1578.86,0.00030629,120]
[391562729,1760656242522,-1578.86,0.00030629,120]
[391562730,1760656242532,-1578.86,0.00030629,120]
[391562731,1760656242541,-1578.86,0.00030629,120]
[391562732,1760656242551,-1578.86,0.00030629,120]
[391562733,1760656242561,-1578.86,0.00030629,120]
[391562734,1760656242571,-1578.86,0.00030629,120]
[391562735,1760656242581,-1579.04817865,0.00030629,120]
[391562736,1760656242591,-200.0,0.0003063,2]
[391562737,1760656242601,-538.34,0.00030646,15]
[391562738,1760656242611,-538.34,0.00030646,15]
[391562739,1760656242620,-4699.48625928,0.0003066,2]
[391562740,1760656242633,-2959.9800041,0.0003066,2]
[391562742,1760656242643,-500.0,0.00030664,17]
[391562744,1760656242653,-500.0,0.00030664,7]
[391562745,1760656242662,-500.0,0.00030664,2]
[391562746,1760656242673,-500.0,0.00030664,17]
[391562747,1760656242683,-154.86395074,0.0003067,15]
[391562748,1760656242693,-4699.4862592,0.00030673,2]
[391562749,1760656242703,-873.34230232,0.00030675,2]
[391562750,1760656242715,-500.0,0.00030684,30]
[391562751,1760656242725,-4699.4862592,0.00030686,2]
[391562752,1760656242735,-154.86395073,0.00030688,15]
[391562753,1760656242745,-4699.4862592,0.00030699,2]
[391562754,1760656242755,-154.86395073,0.00030706,15]
[391562755,1760656242765,-4699.4862592,0.00030712,2]
[391562756,1760656242775,-154.86395073,0.00030724,15]
[391562757,1760656242786,-4699.4862592,0.00030726,2]
[391562758,1760656242796,-249.81,0.00030727,2]
[391562759,1760656242805,-5000.0,0.00030728,2]
[391562760,1760656242815,-426.70684364,0.00030738,2]
[391562761,1760656242825,-4699.4862592,0.00030739,2]
[391562762,1760656242835,-154.86395073,0.00030742,15]
[391562763,1760656242845,-160.5894461,0.00030745,2]
[391562764,1760656242855,-738.16,0.00030745,17]
[391562765,1760656242864,-1000.0,0.00030745,17]
[391562766,1760656242875,-17237.1653842,0.00030745,3]
[391562767,1760656242884,-11491.4435894,0.00030752,3]
[391562768,1760656242894,-5745.72179472,0.00030754,3]
[391562769,1760656242905,-2098.0,0.00030755,5]
[391562770,1760656242916,-32052.5329,0.00030755,2]
[391562771,1760656242926,-17105.5143,0.00030755,2]
[391562772,1760656242937,-5745.72179472,0.00030756,3]
[391562773,1760656242947,-154.86395073,0.0003076,15]
[391562774,1760656242957,-5745.72179472,0.00030763,3]
[391562775,1760656242967,-500.0,0.00030764,120]
[391562776,1760656242978,-500.0,0.00030764,120]
[391562777,1760656242988,-1200.01,0.00030764,17]
[391562778,1760656242998,-462.99499192,0.00030765,2]
[391562779,1760656243008,-170.79321325,0.00030766,2]
[391562780,1760656243018,-14250.5176,0.00030766,3]
[391562781,1760656243028,-168.0,0.00030768,2]
[391562782,1760656243038,-415.905,0.0003077,10]
[391562783,1760656243048,-500.0,0.00030773,2]
[391562784,1760656243058,-514.10505592,0.00030773,5]
[391562785,1760656243068,-498.95818938,0.00030773,5]
[391562786,1760656243078,-354.91230689,0.00030773,5]
[391562787,1760656243088,-500.0,0.00030776,17]
[391562788,1760656243099,-500.0,0.00030776,7]
[391562789,1760656243108,-500.0,0.00030776,2]
[391562790,1760656243118,-500.0,0.00030776,17]
[391562791,1760656243128,-2959.9800041,0.00030777,2]
[391562792,1760656243138,-2679.39301544,0.00030777,2]
[391562793,1760656243147,-2491.49484824,0.00030778,4]
[391562794,1760656243157,-2491.49484824,0.00030778,4]
[391562795,1760656243167,-2491.49484824,0.00030778,4]
[391562796,1760656243176,-2491.49484824,0.00030778,4]
[391562797,1760656243186,-2491.49484824,0.00030778,4]
[391562798,1760656243196,-2491.49484824,0.00030778,4]
[391562799,1760656243206,-2491.49484824,0.00030778,4]
[391562800,1760656243217,-2491.49484824,0.00030778,4]
[391562801,1760656243227,-2491.49484824,0.00030778,4]
[391562802,1760656243238,-2491.49484824,0.00030778,4]
[391562803,1760656243248,-2491.49484824,0.00030778,4]
[391562804,1760656243259,-2491.49484824,0.00030778,4]
[391562805,1760656243269,-2491.49484824,0.00030778,4]
[391562806,1760656243280,-2491.49484824,0.00030778,4]
[391562807,1760656243290,-2491.49484824,0.00030778,4]
[391562808,1760656243300,-2491.49484824,0.00030778,4]
[391562809,1760656243309,-2491.49484824,0.00030778,4]
[391562810,1760656243319,-2491.49484824,0.00030778,4]
[391562811,1760656243330,-2491.49484824,0.00030778,4]
[391562812,1760656243340,-2491.49,0.00030778,4]
[391562813,1760656243351,-154.86395073,0.00030778,15]
[391562814,1760656243360,-636.13414308,0.00030778,2]
[391562816,1760656243370,-691.95486181,0.00030778,2]
[391562817,1760656243380,-192.52302376,0.00030778,2]
[391562818,1760656243389,-5745.72179472,0.0003079,3]
[391562819,1760656243401,-500.0,0.000308,120]
[391562820,1760656243411,-352.39,0.000308,7]
[391562821,1760656243421,-500.0,0.000308,120]
[391562822,1760656243431,-500.0,0.000308,16]
[391562823,1760656243441,-500.0,0.000308,2]
[391562824,1760656243452,-228.14186512,0.000308,2]
[391562825,1760656243461,-929.129007,0.000308,4]
[391562826,1760656243471,-304.75183819,0.000308,17]
[391562827,1760656243480,-500.0,0.000308,17]
[391562828,1760656243490,-646.77,0.000308,30]
[391562829,1760656243500,-500.0,0.000308,17]
[391562830,1760656243510,-500.0,0.00030801,30]
[391562831,1760656243519,-332.62,0.00030809,2]
[391562832,1760656243528,-11491.4435894,0.00030818,3]
[391562833,1760656243538,-1000.0,0.0003082,2]
[391562834,1760656243548,-34474.3307683,0.00030822,3]
[391562835,1760656243558,-5745.72179472,0.00030824,3]
[391562836,1760656243568,-17237.1653842,0.00030828,3]
[391562837,1760656243578,-132151.601279,0.00030832,3]
[391562838,1760656243588,-116549.314192,0.00030832,3]
[391562839,1760656243598,-1000.0,0.00030834,11]
[391562840,1760656243607,-1000.0,0.00030834,11]
[391562841,1760656243617,-1000.0,0.00030834,11]
[391562842,1760656243631,-1000.0,0.00030834,11]
[391562843,1760656243641,-1000.0,0.00030834,11]
[391562844,1760656243651,-1000.0,0.00030834,11]
[391562845,1760656243661,-1000.0,0.00030834,11]
[391562846,1760656243672,-1000.0,0.00030834,11]
[391562847,1760656243682,-1000.0,0.00030834,11]
[391562848,1760656243692,-1120.78671936,0.00030834,11]
[391562849,1760656243703,-1000.0,0.00030834,11]
[391562850,1760656243715,-1000.0,0.00030834,11]
[391562851,1760656243726,-1000.0,0.00030834,11]
[391562852,1760656243736,-1000.0,0.00030834,11]
[391562853,1760656243746,-1000.0,0.00030834,11]
[391562854,1760656243756,-1000.0,0.00030834,11]
[391562855,1760656243766,-1000.0,0.00030834,11]
[391562856,1760656243776,-1000.0,0.00030834,11]
[391562857,1760656243786,-2127.0,0.00030834,2]
[391562858,1760656243795,-836.67557333,0.00030834,2]
[391562859,1760656243805,-11491.4435894,0.00030835,3]
[391562860,1760656243815,-8633.28253274,0.00030835,3]
[391562861,1760656243825,-114914.435894,0.00030835,3]
[391562862,1760656243835,-112232.672926,0.00030835,3]
[391562863,1760656243846,-3033.6762027,0.00030838,2]
[391562864,1760656243862,-23358.1007727,0.00030838,2]
[391562865,1760656243871,-500.0,0.00030841,120]
[391562866,1760656243880,-500.0,0.00030841,120]
[391562867,1760656243890,-588.27,0.00030841,120]
[391562868,1760656243900,-738.16,0.00030841,17]
[391562869,1760656243910,-500.0,0.00030841,17]
[391562870,1760656243919,-500.0,0.00030841,2]
[391562871,1760656243929,-1000.0,0.00030841,17]
[391562872,1760656243939,-1200.01,0.00030841,17]
[391562873,1760656243949,-476.32,0.00030841,17]
[391562874,1760656243960,-500.0,0.00030845,17]
[391562875,1760656243970,-500.0,0.00030845,17]
[391562876,1760656243980,-500.0,0.00030845,2]
[391562877,1760656243990,-500.0,0.00030845,2]
[391562878,1760656243999,-500.0,0.00030851,120]
[391562879,1760656244009,-500.0,0.00030851,120]
[391562880,1760656244020,-500.0,0.00030851,120]
[391562881,1760656244030,-500.0,0.00030851,120]
[391562882,1760656244040,-738.16,0.00030851,17]
[391562883,1760656244050,-500.0,0.00030851,16]
[391562884,1760656244060,-500.0,0.00030851,2]
[391562885,1760656244070,-500.0,0.00030851,17]
[391562886,1760656244081,-500.0,0.00030851,2]
[391562887,1760656244091,-500.0,0.00030851,2]
[391562888,1760656244101,-1000.0,0.00030851,17]
[391562889,1760656244111,-1200.01,0.00030851,17]
[391562890,1760656244122,-500.0,0.00030851,17]
[391562891,1760656244133,-285401.41897787,0.00030852,2]
[391562892,1760656244143,-1091.0,0.00030854,5]
[391562893,1760656244153,-500.0,0.00030855,30]
[391562894,1760656244163,-500.0,0.00030855,30]
[391562895,1760656244173,-500.0,0.00030855,120]
[391562896,1760656244183,-500.0,0.00030855,120]
[391562897,1760656244193,-500.0,0.00030855,120]
[391562898,1760656244204,-500.0,0.00030855,120]
[391562899,1760656244214,-500.0,0.00030855,120]
[391562900,1760656244224,-500.0,0.00030855,120]
[391562901,1760656244235,-500.0,0.00030855,120]
[391562902,1760656244244,-500.0,0.00030855,120]
[391562903,1760656244255,-738.16,0.00030855,17]
[391562904,1760656244265,-738.16,0.00030855,17]
[391562905,1760656244275,-500.0,0.00030855,16]
[391562906,1760656244284,-500.0,0.00030855,16]
[391562907,1760656244294,-500.0,0.00030855,2]
[391562908,1760656244304,-500.0,0.00030855,2]
[391562909,1760656244314,-1000.0,0.00030855,17]
[391562910,1760656244324,-1000.0,0.00030855,17]
[391562911,1760656244334,-1200.01,0.00030855,17]
[391562912,1760656244343,-1200.01,0.00030855,17]
[391562913,1760656244353,-610.1,0.00030855,17]
[391562914,1760656244363,-500.0,0.00030861,2]
[391562915,1760656244373,-300.0,0.00030863,49]
[391562916,1760656244383,-280.502,0.00030864,2]
[391562917,1760656244392,-586.76569243,0.00030864,30]
[391562918,1760656244402,-1000.0,0.00030864,2]
[391562919,1760656244413,-600.0,0.00030865,7]
[391562920,1760656244423,-200.0,0.00030865,2]
[391562921,1760656244433,-1156.37,0.00030865,120]
[391562922,1760656244443,-155.0,0.00030865,2]
[391562923,1760656244453,-150.0,0.00030865,2]
[391562924,1760656244463,-150.0,0.00030865,7]
[391562925,1760656244474,-150.0,0.00030865,7]
[391562926,1760656244484,-150.0,0.00030865,7]
[391562927,1760656244494,-189.32850102,0.00030865,7]
[391562928,1760656244504,-150.0,0.00030865,7]
[391562929,1760656244514,-500.0,0.00030865,7]
[391562930,1760656244524,-500.0,0.00030865,7]
[391562931,1760656244533,-621.88669567,0.00030865,30]
[391562932,1760656244543,-500.0,0.00030865,120]
[391562933,1760656244553,-452.76315027,0.00030865,120]
[391562934,1760656244563,-200.0,0.00030865,120]
[391562935,1760656244573,-200.0,0.00030865,120]
[391562936,1760656244583,-500.0,0.00030865,120]
[391562937,1760656244592,-500.0,0.00030865,120]
[391562938,1760656244602,-500.0,0.00030865,120]
[391562939,1760656244612,-150.0,0.00030865,20]
[391562940,1760656244622,-500.0,0.00030865,16]
[391562941,1760656244635,-500.0,0.00030865,16]
[391562942,1760656244646,-500.0,0.00030865,16]
[391562943,1760656244656,-500.0,0.00030865,2]
[391562944,1760656244667,-1452.15747,0.00030865,2]
[391562945,1760656244677,-526.85,0.00030865,2]
[391562946,1760656244687,-151.0,0.00030866,30]
[391562947,1760656244697,-151.0,0.00030866,30]
[391562948,1760656244709,-151.0,0.00030866,30]
[391562949,1760656244719,-270.46308,0.00030866,30]
[391562950,1760656244729,-151.0,0.00030866,30]
[391562951,1760656244739,-151.0,0.00030866,30]
[391562952,1760656244749,-300.0,0.0003087,2]
[391562953,1760656244759,-300.0,0.0003087,2]
[391562954,1760656244770,-300.0,0.0003087,2]
[391562955,1760656244779,-300.0,0.0003087,2]
[391562956,1760656244789,-400.0,0.0003087,2]
[391562957,1760656244799,-400.0,0.0003087,2]
[391562958,1760656244808,-400.0,0.0003087,2]
[391562959,1760656244818,-450.0,0.0003087,2]
[391562960,1760656244828,-500.0,0.00030871,120]
[391562961,1760656244838,-500.0,0.00030871,120]
[391562962,1760656244847,-500.0,0.00030871,120]
[391562963,1760656244859,-500.0,0.00030871,120]
[391562964,1760656244868,-500.0,0.00030871,120]
[391562965,1760656244878,-500.0,0.00030871,120]
[391562966,1760656244888,-500.0,0.00030871,120]
[391562967,1760656244898,-500.0,0.00030871,120]
[391562968,1760656244908,-500.0,0.00030871,120]
[391562969,1760656244918,-500.0,0.00030871,120]
[391562970,1760656244928,-500.0,0.00030871,120]
[391562971,1760656244937,-500.0,0.00030871,120]
[391562972,1760656244947,-500.0,0.00030871,120]
[391562973,1760656244957,-500.0,0.00030871,120]
[391562974,1760656244968,-500.0,0.00030871,120]
[391562975,1760656244979,-500.0,0.00030871,120]
[391562976,1760656244989,-500.0,0.00030871,120]
[391562977,1760656244999,-261.94,0.00030871,120]
[391562978,1760656245009,-500.0,0.00030871,120]
[391562979,1760656245019,-500.0,0.00030871,120]
[391562980,1760656245029,-413.87201724,0.00030871,120]
[391562981,1760656245039,-738.16,0.00030871,17]
[391562982,1760656245048,-738.16,0.00030871,17]
[391562983,1760656245059,-738.16,0.00030871,17]
[391562984,1760656245068,-738.16,0.00030871,17]
[391562985,1760656245078,-738.16,0.00030871,17]
[391562986,1760656245088,-738.16,0.00030871,17]
[391562987,1760656245099,-738.16,0.00030871,17]
[391562988,1760656245109,-738.16,0.00030871,17]
[391562989,1760656245119,-738.16,0.00030871,17]
[391562990,1760656245129,-738.16,0.00030871,17]
[391562991,1760656245140,-738.16,0.00030871,17]
[391562992,1760656245150,-738.16,0.00030871,17]
[391562993,1760656245160,-738.16,0.00030871,17]
[391562994,1760656245170,-738.16,0.00030871,17]
[391562995,1760656245180,-738.16,0.00030871,17]
[391562996,1760656245190,-738.16,0.00030871,17]
[391562997,1760656245200,-738.16,0.00030871,17]
[391562998,1760656245211,-738.16,0.00030871,17]
[391562999,1760656245221,-738.16,0.00030871,17]
[391563000,1760656245232,-500.0,0.00030871,16]
[391563001,1760656245243,-500.0,0.00030871,16]
[391563002,1760656245253,-500.0,0.00030871,16]
[391563003,1760656245263,-500.0,0.00030871,16]
[391563004,1760656245273,-500.0,0.00030871,16]
[391563005,1760656245283,-500.0,0.00030871,16]
[391563006,1760656245293,-500.0,0.00030871,16]
[391563007,1760656245303,-500.0,0.00030871,16]
[391563008,1760656245313,-500.0,0.00030871,16]
[391563009,1760656245324,-402.33138201,0.00030871,16]
[391563010,1760656245334,-1000.0,0.00030871,17]
[391563011,1760656245345,-1000.0,0.00030871,17]
[391563012,1760656245355,-1000.0,0.00030871,17]
[391563013,1760656245366,-1000.0,0.00030871,17]
[391563014,1760656245376,-1000.0,0.00030871,17]
[391563015,1760656245386,-1000.0,0.00030871,17]
[391563016,1760656245396,-1000.0,0.00030871,17]
[391563017,1760656245406,-1000.0,0.00030871,17]
[391563018,1760656245417,-1000.0,0.00030871,17]
[391563019,1760656245427,-1000.0,0.00030871,17]
[391563020,1760656245437,-644.97722451,0.00030871,17]
[391563021,1760656245446,-1200.01,0.00030871,17]
[391563022,1760656245456,-1200.01,0.00030871,17]
[391563023,1760656245467,-1200.01,0.00030871,17]
[391563024,1760656245477,-1200.01,0.00030871,17]
[391563025,1760656245487,-1200.01,0.00030871,17]
[391563026,1760656245497,-1200.01,0.00030871,17]
[391563027,1760656245507,-1200.01,0.00030871,17]
[391563028,1760656245517,-1200.01,0.00030871,17]
[391563029,1760656245527,-1200.01,0.00030871,17]
[391563030,1760656245537,-1200.01,0.00030871,17]
[391563031,1760656245548,-1200.01,0.00030871,17]
[391563032,1760656245558,-1200.01,0.00030871,17]
[391563033,1760656245567,-1200.01,0.00030871,17]
[391563034,1760656245578,-1200.01,0.00030871,17]
[391563035,1760656245588,-1200.01,0.00030871,17]
[391563036,1760656245598,-1200.01,0.00030871,17]
[391563037,1760656245608,-1200.01,0.00030871,17]
[391563038,1760656245619,-1200.01,0.00030871,17]
[391563039,1760656245630,-1200.05347723,0.00030871,17]
[391563040,1760656245642,-256.163549,0.00030872,30]
[391563041,1760656245653,-151.0,0.00030872,30]
[391563042,1760656245663,-151.0,0.00030872,30]
[391563043,1760656245675,-151.0,0.00030872,30]
[391563044,1760656245685,-236.600756,0.00030872,30]